bitfinex/quotes_SOLUSD_20241222
["timestamp","ask_amount","ask_price","bid_price","bid_amount"]
[1734878446212,23.776884,180.48,180.37,0.6642269]
[1734878446402,1.03418709,180.47,180.37,0.6642269]
[1734878446891,1.03418709,180.47,180.38,30.0]
[1734878447081,24.93656109,180.5,180.38,30.0]
[1734878448131,1.15967709,180.5,180.38,30.0]
[1734878448305,1.03418709,180.53,180.38,30.0]
[1734878449102,0.12549,180.52,180.38,30.0]
[1734878449324,1.03418709,180.53,180.38,30.0]
[1734878450710,1.03418709,180.53,180.42,20.0]
[1734878451033,1.03418709,180.58,180.42,50.0]
[1734878451601,1.03418709,180.6,180.46,20.0]
[1734878451826,1.03418709,180.6,180.46,50.0]
[1734878452342,1.03418709,180.6,180.52,312.0]
[1734878452839,1.03418709,180.66,180.52,30.0]
[1734878453042,6.0997,180.68,180.55,20.0]
[1734878453245,13.8319,180.75,180.55,20.0]
[1734878453533,7.13388709,180.76,180.55,20.0]
[1734878453534,1.03418709,180.74,180.55,20.83024686]
[1734878453730,1.03418709,180.74,180.56,23.776884]
[1734878454029,1.03418709,180.74,180.59,20.0]
[1734878454333,1.03418709,180.75,180.59,20.0]
[1734878454830,1.03418709,180.75,180.59,33.843]
[1734878455143,1.03418709,180.75,180.59,63.843]
[1734878455513,0.12549,180.74,180.59,63.843]
[1734878455929,0.12549,180.72,180.61,312.0]
[1734878456125,0.12549,180.7,180.61,30.0]
[1734878456325,1.03418709,180.69,180.55,13.846]
[1734878456515,0.12549,180.68,180.53,20.0]
[1734878456825,0.12549,180.68,180.54,20.0]
[1734878457032,0.12549,180.68,180.56,30.0]
[1734878457409,1.03418709,180.69,180.56,30.0]
[1734878457410,23.776884,180.69,180.56,30.0]
[1734878457614,1.03418709,180.68,180.56,30.0]
[1734878458211,1.03418709,180.68,180.51,42.37870914]
[1734878458466,24.81107109,180.74,180.52,30.0]
[1734878458744,0.12549,180.73,180.52,30.0]
[1734878459040,23.902374,180.71,180.57,20.0]
[1734878459206,23.902374,180.69,180.57,20.0]
[1734878459407,0.12549,180.67,180.57,20.0]
[1734878459711,1.03418709,180.68,180.54,33.8471]
[1734878459916,24.81107109,180.71,180.54,33.8471]
[1734878460613,1.03418709,180.71,180.54,33.8471]
[1734878460814,1.03418709,180.75,180.55,20.0]
[1734878461009,20.0,180.73,180.57,20.0]
[1734878461211,1.03418709,180.72,180.57,20.0]
[1734878461443,1.03418709,180.75,180.58,13.8442]
[1734878461745,1.03418709,180.75,180.61,20.0]
[1734878462328,0.12549,180.74,180.58,13.8442]
[1734878462650,23.902374,180.72,180.58,13.8442]
[1734878462852,1.03418709,180.71,180.58,325.8442]
[1734878463028,1.03418709,180.75,180.61,33.8419]
[1734878464352,6.0997,180.76,180.61,91.5258]
[1734878464654,6.0997,180.76,180.61,63.8419]
[1734878464655,1.03418709,180.75,180.61,63.8419]
[1734878465160,0.12549,180.74,180.61,30.0]
[1734878465340,0.12549,180.72,180.61,30.0]
[1734878465547,23.902374,180.7,180.61,30.0]
[1734878465754,23.902374,180.68,180.54,13.8472]
[1734878465926,23.902374,180.66,180.55,30.0]
[1734878466125,1.03418709,180.65,180.55,30.0]
[1734878466517,0.12549,180.62,180.46,27.7063]
[1734878466875,1.03418709,180.62,180.47,30.0]
[1734878467164,1.03418709,180.62,180.4,26.71473097]
[1734878467377,1.03418709,180.62,180.42,0.12549]
[1734878467530,1.03418709,180.62,180.43,0.31180344]
[1734878467725,37.744274,180.61,180.42,0.83075213]
[1734878468059,37.744274,180.61,180.41,13.8573]
[1734878468060,23.902374,180.59,180.41,13.8573]
[1734878468263,23.902374,180.57,180.42,30.0]
[1734878468563,23.902374,180.53,180.37,17.54847917]
[1734878468723,23.902374,180.51,180.37,0.6642269]
[1734878468927,23.902374,180.49,180.37,0.6642269]
[1734878469152,23.902374,180.47,180.37,0.6642269]
[1734878469367,23.902374,180.45,180.37,0.6642269]
[1734878469549,1.03418709,180.44,180.37,0.6642269]
[1734878469945,1.03418709,180.47,180.37,0.6642269]
[1734878470125,24.81107109,180.51,180.37,0.6642269]
[1734878470325,0.12549,180.5,180.37,0.6642269]
[1734878470558,23.902374,180.48,180.37,0.6642269]
[1734878470727,0.12549,180.46,180.37,0.6642269]
[1734878471536,0.12549,180.44,180.37,0.6642269]
[1734878472054,1.03418709,180.47,180.37,0.6642269]
[1734878472257,23.776884,180.49,180.37,0.6642269]
[1734878472423,1.03418709,180.48,180.37,0.6642269]
[1734878472626,1.03418709,180.53,180.37,0.6642269]
[1734878472826,1.03418709,180.53,180.38,20.0]
[1734878473147,1.03418709,180.56,180.43,20.0]
[1734878473527,1.03418709,180.6,180.43,33.8556]
[1734878475378,13.8435,180.59,180.43,30.0]
[1734878475525,20.0,180.55,180.37,0.6642269]
[1734878475724,1.03418709,180.54,180.37,0.6642269]
[1734878476150,0.12549,180.53,180.37,0.6642269]
[1734878476477,0.12549,180.48,180.37,0.6642269]
[1734878476673,23.776884,180.47,180.37,0.6642269]
[1734878476965,23.776884,180.45,180.37,0.6642269]
[1734878477141,1.03418709,180.44,180.37,0.6642269]
[1734878477351,0.12549,180.43,180.37,0.6642269]
[1734878477553,1.03418709,180.43,180.37,0.6642269]
[1734878477758,1.03418709,180.47,180.37,0.6642269]
[1734878477950,23.776884,180.49,180.37,0.6642269]
[1734878478145,1.03418709,180.48,180.37,0.6642269]
[1734878478351,13.8472,180.55,180.37,0.6642269]
[1734878478579,1.03418709,180.51,180.37,0.6642269]
[1734878478751,1.03418709,180.51,180.38,13.8596]
[1734878480184,6.1877,180.59,180.41,20.0]
[1734878480342,1.03418709,180.58,180.46,312.0]
[1734878480544,7.22188709,180.66,180.49,20.0]
[1734878480741,1.03418709,180.65,180.49,20.83054185]
[1734878480942,6.1877,180.66,180.49,20.83054185]
[1734878481141,6.1877,180.66,180.53,20.0]
[1734878481341,6.1877,180.66,180.53,33.8476]
[1734878481576,1.03418709,180.74,180.54,0.83034762]
[1734878482044,1.03418709,180.74,180.58,20.0]
[1734878482273,1.03418709,180.74,180.59,0.83006734]
[1734878482879,1.03418709,180.74,180.57,13.8448]
[1734878483250,0.12549,180.73,180.56,20.0]
[1734878483447,0.12549,180.71,180.56,20.0]
[1734878483874,0.12549,180.71,180.58,312.0]
[1734878484043,0.12549,180.69,180.49,13.8507]
[1734878484245,1.03418709,180.7,180.51,30.0]
[1734878484246,0.12549,180.67,180.51,30.0]
[1734878485407,1.03418709,180.69,180.52,13.8488]
[1734878485589,0.12549,180.68,180.52,13.8488]
[1734878485891,0.12549,180.66,180.51,20.0]
[1734878486049,1.03418709,180.67,180.51,20.0]
[1734878486251,24.81107109,180.71,180.51,20.0]
[1734878487053,1.03418709,180.71,180.55,20.0]
[1734878487352,1.03418709,180.71,180.58,30.0]
[1734878488055,0.12549,180.7,180.58,30.0]
[1734878488380,0.12549,180.68,180.58,30.0]
[1734878488584,23.902374,180.68,180.58,30.0]
[1734878488769,0.12549,180.66,180.58,30.0]
[1734878489396,1.03418709,180.67,180.58,30.0]
[1734878489581,24.81107109,180.71,180.58,30.0]
[1734878489753,1.03418709,180.71,180.58,30.0]
[1734878489948,1.03418709,180.74,180.58,30.0]
[1734878490889,0.12549,180.73,180.58,30.0]
[1734878491398,1.03418709,180.74,180.62,20.0]
[1734878491692,1.03418709,180.74,180.62,50.0]
[1734878492064,6.1877,180.75,180.62,64.67099546]
[1734878492393,1.03418709,180.74,180.62,63.841]
[1734878492699,1.03418709,180.79,180.63,0.82992866]
[1734878492861,1.03418709,180.79,180.66,20.0]
[1734878493463,1.03418709,180.8,180.66,20.0]
[1734878493662,1.03418709,180.8,180.66,33.8379]
[1734878493887,1.03418709,180.8,180.66,63.8379]
[1734878494407,0.12549,180.79,180.66,50.0]
[1734878495160,1.03418709,180.8,180.66,50.0]
[1734878495378,1.03418709,180.8,180.67,13.8373]
[1734878495596,0.12549,180.79,180.67,30.0]
[1734878495764,0.12549,180.77,180.67,30.0]
[1734878496004,0.12549,180.75,180.67,30.0]
[1734878496166,0.12549,180.73,180.51,64.6774944]
[1734878496373,0.12549,180.71,180.51,13.849]
[1734878496664,23.902374,180.69,180.51,13.849]
[1734878496859,23.902374,180.67,180.47,13.852]
[1734878497200,0.12549,180.65,180.47,13.852]
[1734878497695,1.03418709,180.64,180.47,13.852]
[1734878498500,37.617284,180.63,180.46,3.8139]
[1734878498803,1.03418709,180.62,180.46,17.6672]
[1734878499664,1.03418709,180.62,180.49,20.0]
[1734878500214,1.03418709,180.62,180.43,6.0546]
[1734878500215,13.8427,180.6,180.43,6.0546]
[1734878500416,1.03418709,180.59,180.43,6.0546]
[1734878501080,13.845,180.57,180.38,13.8427]
[1734878501283,13.845,180.57,180.37,14.5240269]
[1734878501284,1.15967709,180.56,180.39,30.0]
[1734878501481,0.12549,180.54,180.37,0.6642269]
[1734878501678,1.15967709,180.54,180.37,0.6642269]
[1734878502817,0.12549,180.52,180.37,0.6642269]
[1734878503007,1.15967709,180.52,180.37,0.6642269]
[1734878503413,1.03418709,180.52,180.37,0.6642269]
[1734878503617,14.87988709,180.57,180.38,13.8596]
[1734878503784,0.12549,180.56,180.38,13.8596]
[1734878504085,1.03418709,180.55,180.38,13.8596]
[1734878504427,0.12549,180.54,180.38,13.8596]
[1734878504895,1.03418709,180.53,180.38,13.8596]
[1734878506051,1.03418709,180.54,180.38,13.8596]
[1734878506890,0.12549,180.53,180.41,20.0]
[1734878507191,1.03418709,180.52,180.41,20.0]
[1734878507521,1.03418709,180.57,180.42,23.776884]
[1734878507817,1.03418709,180.57,180.45,20.0]
[1734878508191,1.03418709,180.6,180.49,20.0]
[1734878508591,1.03418709,180.63,180.49,20.0]
[1734878509205,1.03418709,180.63,180.5,20.0]
[1734878509403,1.03418709,180.63,180.52,20.0]
[1734878509931,6.0328,180.71,180.56,20.0]
[1734878510082,1.03418709,180.7,180.56,20.0]
[1734878510281,1.03418709,180.7,180.57,23.776884]
[1734878510490,1.03418709,180.75,180.6,20.0]
[1734878510887,14.86308709,180.78,180.6,20.0]
[1734878511855,14.86308709,180.78,180.61,13.8419]
[1734878512531,1.03418709,180.78,180.64,20.0]
[1734878512727,1.03418709,180.78,180.65,20.0]
[1734878513039,1.03418709,180.78,180.66,13.8381]
[1734878513351,1.03418709,180.78,180.69,20.0]
[1734878513520,1.03418709,180.78,180.66,13.8381]
[1734878513744,0.12549,180.77,180.61,3.8314]
[1734878513937,6.0328,180.79,180.53,3.8314]
[1734878513938,0.12549,180.75,180.53,3.8314]
[1734878514137,1.03418709,180.76,180.54,0.12549]
[1734878514619,0.12549,180.75,180.53,4.66162945]
[1734878514843,1.03418709,180.74,180.54,13.8473]
[1734878515046,1.03418709,180.74,180.55,0.83017507]
[1734878515244,1.03418709,180.74,180.57,0.12549]
[1734878515475,1.03418709,180.74,180.56,23.776884]
[1734878515857,1.15967709,180.76,180.56,23.776884]
[1734878516054,1.15967709,180.76,180.58,23.776884]
[1734878516263,1.03418709,180.76,180.58,349.621084]
[1734878516788,1.15967709,180.78,180.61,20.0]
[1734878517462,1.15967709,180.78,180.62,30.0]
[1734878517659,14.98857709,180.78,180.62,30.0]
[1734878517867,1.03418709,180.78,180.65,20.0]
[1734878518263,1.03418709,180.78,180.66,20.0]
[1734878518462,1.03418709,180.8,180.7,20.0]
[1734878518663,38.63809253,180.81,180.7,20.0]
[1734878518866,6.1627,180.87,180.7,20.0]
[1734878519081,1.03418709,180.86,180.7,20.0]
[1734878519396,1.03418709,180.86,180.7,50.0]
[1734878519897,0.12549,180.85,180.7,50.0]
[1734878520053,0.12549,180.83,180.7,30.0]
[1734878520259,0.12549,180.81,180.7,30.0]
[1734878520574,1.03418709,180.82,180.7,30.0]
[1734878520771,1.03418709,180.84,180.71,13.8343]
[1734878520956,1.03418709,180.84,180.74,20.0]
[1734878521292,1.03418709,180.86,180.74,20.0]
[1734878521795,1.03418709,180.86,180.74,33.8318]
[1734878522153,1.03418709,180.86,180.75,23.776884]
[1734878522373,1.03418709,180.91,180.78,20.0]
[1734878522979,1.03418709,180.98,180.82,20.0]
[1734878523201,1.03418709,180.98,180.75,30.0]
[1734878523202,1.03418709,180.98,180.86,20.0]
[1734878523620,0.6642269,180.99,180.87,23.776884]
[1734878523920,0.6642269,180.99,180.88,13.821]
[1734878524096,0.6642269,180.99,180.91,20.0]
[1734878524690,0.6642269,180.99,180.92,23.776884]
[1734878524995,0.6642269,180.99,180.95,20.0]
[1734878525208,2.69e-05,180.99,180.98,43.776884]
[1734878525517,2.69e-05,180.99,180.98,44.60521171]
[1734878525694,2.69e-05,180.99,180.98,58.41881171]
[1734878525900,2.69e-05,180.99,180.98,88.41881171]
[1734878526208,2.69e-05,180.99,180.98,64.64192771]
[1734878526419,2.69e-05,180.99,180.98,88.41881171]
[1734878526710,2.69e-05,180.99,180.98,50.0]
[1734878526887,2.69e-05,180.99,180.98,30.0]
[1734878527215,2.69e-05,180.99,180.9,13.8193]
[1734878527520,2.69e-05,180.99,180.92,30.0]
[1734878528208,2.69e-05,180.99,180.93,14.64598353]
[1734878528794,2.69e-05,180.99,180.94,0.12549]
[1734878528992,2.69e-05,180.99,180.95,0.82832196]
[1734878529224,2.69e-05,180.99,180.98,23.776884]
[1734878529424,2.69e-05,180.99,180.98,24.60507192]
[1734878529620,2.69e-05,180.99,180.98,54.60507192]
[1734878530201,1.03418709,181.16,181.01,20.0]
[1734878531015,1.03418709,181.16,181.05,20.0]
[1734878531540,1.03418709,181.16,181.06,20.0]
[1734878532402,1.03418709,181.16,180.98,0.82809461]
[1734878532734,1.03418709,181.16,181.0,23.776884]
[1734878533046,0.12549,181.15,180.95,13.8155]
[1734878533199,1.03418709,181.14,180.95,13.8155]
[1734878533537,1.03418709,181.14,180.97,43.8144]
[1734878533826,62.60488014,181.17,180.98,70.65371094]
[1734878534233,0.6642269,181.17,181.06,20.0]
[1734878534837,0.6642269,181.17,181.05,13.8083]
[1734878535022,0.12549,181.16,180.97,27.6288]
[1734878535226,1.15967709,181.16,180.99,30.0]
[1734878535421,14.95957709,181.16,180.92,13.8177]
[1734878535623,14.95957709,181.16,180.89,3.9581]
[1734878535624,23.902374,181.1,180.89,3.9581]
[1734878535812,1.03418709,181.09,180.89,3.9581]
[1734878536219,0.12549,181.04,180.84,14.65244906]
[1734878536527,1.15967709,181.04,180.85,30.0]
[1734878536941,0.12549,181.02,180.85,30.0]
[1734878537236,0.12549,181.02,180.8,315.6972]
[1734878537237,0.12549,181.0,180.8,315.6972]
[1734878537535,1.15967709,181.0,180.81,13.8266]
[1734878537736,0.12549,180.97,180.81,13.8266]
[1734878537940,30.077784,180.96,180.77,13.8292]
[1734878538104,0.12549,180.94,180.77,13.8292]
[1734878538298,1.03418709,180.95,180.78,0.95479324]
[1734878538740,1.03418709,181.02,180.78,70.65479324]
[1734878539032,1.03418709,181.02,180.8,69.82549]
[1734878539246,6.3009,181.04,180.86,0.12549]
[1734878539535,1.03418709,181.03,180.87,0.82861359]
[1734878539745,1.03418709,181.03,180.91,20.0]
[1734878540537,1.03418709,181.03,180.93,20.0]
[1734878540906,0.12549,181.02,180.88,23.776884]
[1734878541111,0.12549,181.02,180.89,20.0]
[1734878541339,1.03418709,181.03,180.89,20.0]
[1734878543120,0.12549,181.02,180.86,17.5197]
[1734878543327,0.12549,181.02,180.87,23.776884]
[1734878543631,1.03418709,181.03,180.87,23.776884]
[1734878543936,6.3009,181.04,180.91,312.0]
[1734878544143,6.6386,181.13,180.92,24.60546807]
[1734878544315,1.03418709,181.12,180.95,20.0]
[1734878544636,1.03418709,181.12,180.95,33.8157]
[1734878545045,0.12549,181.11,180.95,33.8157]
[1734878545250,1.03418709,181.12,180.96,24.6053992]
[1734878545545,1.03418709,181.12,180.95,33.8157]
[1734878545742,1.03418709,181.12,180.9,13.8191]
[1734878545743,0.12549,181.1,180.9,13.8191]
[1734878545945,1.15967709,181.1,180.86,17.5193]
[1734878546727,23.902374,181.08,180.86,17.5193]
[1734878547027,0.12549,181.04,180.86,17.5193]
[1734878547240,1.15967709,181.04,180.89,20.0]
[1734878547648,1.03418709,181.07,180.89,332.82880737]
[1734878547959,1.03418709,181.08,180.94,23.776884]
[1734878548144,1.03418709,181.06,180.93,20.0]
[1734878548455,1.03418709,181.12,180.93,20.0]
[1734878548704,1.03418709,181.12,180.97,20.0]
[1734878549035,1.03418709,181.12,180.94,13.8167]
[1734878549350,1.03418709,181.12,180.9,23.776884]
[1734878549558,0.12549,181.1,180.93,20.0]
[1734878549737,1.03418709,181.1,180.94,23.776884]
[1734878549935,1.03418709,181.12,180.97,20.0]
[1734878550139,1.03418709,181.12,181.01,20.0]
[1734878550366,6.6386,181.13,181.05,20.0]
[1734878550730,1.03418709,181.12,180.91,0.82813057]
[1734878550963,0.12549,181.11,180.9,27.6395]
[1734878551257,0.12549,181.09,180.9,339.6395]
[1734878551457,0.12549,181.07,180.9,312.0]
[1734878551632,0.12549,181.05,180.83,6.5765]
[1734878551826,0.12549,181.03,180.81,13.8266]
[1734878552144,0.12549,180.99,180.81,13.8266]
[1734878552472,1.15967709,180.99,180.81,13.8266]
[1734878552670,1.15967709,180.99,180.78,3.722]
[1734878552671,0.12549,180.94,180.78,3.722]
[1734878552884,1.15967709,180.94,180.78,3.722]
[1734878553189,1.15967709,180.94,180.77,13.8292]
[1734878553353,1.15967709,180.94,180.78,30.0]
[1734878553548,1.03418709,180.94,180.77,13.8292]
[1734878553854,0.12549,180.93,180.77,13.8292]
[1734878554381,0.12549,180.93,180.8,20.0]
[1734878554686,20.0,180.95,180.71,10.2985]
[1734878554687,0.12549,180.91,180.71,10.2985]
[1734878554851,0.12549,180.89,180.71,3.722]
[1734878555357,1.03418709,180.9,180.72,14.78851562]
[1734878555952,6.6386,180.92,180.72,14.78851562]
[1734878555953,1.03418709,180.91,180.75,20.0]
[1734878556205,0.12549,180.9,180.73,23.776884]
[1734878556571,0.12549,180.88,180.72,13.8335]
[1734878556775,0.12549,180.86,180.68,13.8361]
[1734878557064,23.902374,180.84,180.64,17.5611]
[1734878557397,6.6386,180.81,180.64,13.8391]
[1734878557554,1.03418709,180.8,180.64,13.8391]
[1734878558387,0.12549,180.79,180.61,312.0]
[1734878558792,0.12549,180.79,180.62,13.8412]
[1734878559856,0.12549,180.79,180.58,6.5765]
[1734878559857,0.12549,180.77,180.58,13.8437]
[1734878560059,0.12549,180.75,180.58,13.8437]
[1734878560265,1.03418709,180.74,180.57,3.722]
[1734878560981,23.902374,180.73,180.55,0.6642269]
[1734878561194,0.12549,180.69,180.55,0.6642269]
[1734878561482,1.15967709,180.69,180.55,0.6642269]
[1734878561961,0.12549,180.67,180.55,0.6642269]
[1734878562158,0.12549,180.64,180.55,0.6642269]
[1734878562370,1.15967709,180.64,180.55,0.6642269]
[1734878562555,1.03418709,180.67,180.55,0.6642269]
[1734878562884,6.5224,180.68,180.55,0.6642269]
[1734878563258,1.03418709,180.72,180.56,0.12549]
[1734878563489,1.03418709,180.74,180.58,0.12549]
[1734878563671,1.03418709,180.74,180.57,20.0]
[1734878563869,1.03418709,180.74,180.58,23.776884]
[1734878564060,1.03418709,180.74,180.62,20.0]
[1734878564261,6.1838,180.75,180.63,20.0]
[1734878564687,6.1838,180.75,180.64,23.776884]
[1734878565261,6.1838,180.75,180.67,20.0]
[1734878565861,7.21798709,180.81,180.67,20.0]
[1734878566092,7.21798709,180.81,180.68,43.776884]
[1734878566293,7.21798709,180.81,180.7,20.0]
[1734878566786,0.12549,180.8,180.61,13.8413]
[1734878566980,0.12549,180.78,180.57,3.7084]
[1734878567180,0.12549,180.76,180.57,3.7084]
[1734878567382,0.12549,180.74,180.57,3.7084]
[1734878567763,1.15967709,180.74,180.57,3.7084]
[1734878567968,1.15967709,180.74,180.57,17.5528]
[1734878568175,1.15967709,180.74,180.58,0.9556992]
[1734878568176,1.03418709,180.74,180.58,0.9556992]
[1734878568393,13.8301,180.77,180.58,0.9556992]
[1734878568394,1.03418709,180.76,180.58,0.9556992]
[1734878568563,1.03418709,180.76,180.6,20.0]
[1734878568765,1.03418709,180.76,180.61,0.12549]
[1734878568962,1.03418709,180.8,180.65,0.12549]
[1734878569268,1.03418709,180.8,180.68,20.0]
[1734878571498,6.1838,180.81,180.69,23.776884]
[1734878571699,6.1838,180.81,180.72,20.0]
[1734878571873,7.21798709,180.81,180.72,20.0]
[1734878572073,6.1838,180.81,180.72,20.0]
[1734878572476,1.03418709,180.8,180.65,23.776884]
[1734878572772,1.03418709,180.8,180.6,13.8424]
[1734878572994,1.03418709,180.8,180.61,0.82991007]
[1734878573193,1.03418709,180.8,180.62,0.12549]
[1734878573496,1.03418709,180.8,180.64,0.12549]
[1734878574085,1.03418709,180.8,180.67,0.12549]
[1734878574286,1.03418709,180.8,180.68,23.776884]
[1734878574487,1.03418709,180.8,180.68,335.776884]
[1734878574698,1.03418709,180.8,180.7,20.0]
[1734878575089,1.03418709,180.8,180.63,13.8399]
[1734878575292,1.03418709,180.8,180.64,23.776884]
[1734878575503,0.12549,180.79,180.64,23.776884]
[1734878575677,1.03418709,180.78,180.63,13.8399]
[1734878576004,1.03418709,180.78,180.59,13.8428]
[1734878576005,20.12549,180.77,180.59,13.8428]
[1734878576224,0.12549,180.75,180.59,13.8428]
[1734878577090,1.03418709,180.76,180.59,13.8428]
[1734878577298,1.03418709,180.76,180.6,0.95568336]
[1734878577577,1.03418709,180.77,180.66,20.0]
[1734878577776,1.03418709,180.8,180.66,20.0]
[1734878578411,1.03418709,180.8,180.67,23.776884]
[1734878578613,1.03418709,180.8,180.59,13.8428]
[1734878578905,0.12549,180.79,180.55,14.5102269]
[1734878579104,20.12549,180.77,180.56,0.12549]
[1734878579300,20.12549,180.77,180.56,0.83021449]
[1734878579301,1.03418709,180.76,180.56,0.83021449]
[1734878579691,1.03418709,180.79,180.57,0.12549]
[1734878579903,1.03418709,180.79,180.59,0.12549]
[1734878580100,1.03418709,180.79,180.61,0.12549]
[1734878580407,1.03418709,180.79,180.64,20.0]
[1734878580601,1.03418709,180.79,180.63,0.12549]
[1734878580910,1.03418709,180.79,180.66,20.0]
[1734878581121,0.12549,180.78,180.66,20.0]
[1734878581417,0.12549,180.78,180.6,13.8426]
[1734878581418,0.12549,180.76,180.6,13.8426]
[1734878581583,0.12549,180.74,180.55,56.0504269]
[1734878581785,1.03418709,180.75,180.57,13.8449]
[1734878581983,1.03418709,180.77,180.58,0.8300234]
[1734878582193,1.03418709,180.77,180.59,0.12549]
[1734878582498,1.03418709,180.77,180.61,0.12549]
[1734878582702,1.15967709,180.8,180.64,20.0]
[1734878582905,13.8281,180.79,180.65,23.776884]
[1734878583107,1.03418709,180.78,180.65,23.776884]
[1734878583309,1.03418709,180.78,180.64,20.0]
[1734878583310,0.12549,180.77,180.64,20.0]
[1734878584237,0.12549,180.75,180.63,20.0]
[1734878584453,0.12549,180.73,180.55,0.6642269]
[1734878584599,0.12549,180.73,180.55,312.6642269]
[1734878584801,1.03418709,180.74,180.56,0.83025782]
[1734878584994,1.03418709,180.74,180.57,0.12549]
[1734878585204,1.03418709,180.78,180.59,0.12549]
[1734878585519,1.03418709,180.8,180.63,0.12549]
[1734878585833,6.1838,180.81,180.72,20.0]
[1734878586119,1.03418709,180.8,180.72,20.0]
[1734878586307,1.03418709,180.8,180.65,23.776884]
[1734878586626,1.03418709,180.8,180.68,20.0]
[1734878586805,1.03418709,180.8,180.69,23.776884]
[1734878587119,6.1838,180.81,180.68,23.776884]
[1734878587426,6.1838,180.81,180.73,23.776884]
[1734878588130,1.03418709,180.86,180.76,20.0]
[1734878588318,6.1496,180.87,180.77,23.776884]
[1734878588696,6.1496,180.87,180.8,20.0]
[1734878588897,6.1496,180.93,180.81,23.776884]
[1734878589296,6.1496,180.93,180.83,23.776884]
[1734878589915,6.1496,180.93,180.83,53.776884]
[1734878590439,1.03418709,180.92,180.83,30.0]
[1734878591105,1.03418709,180.92,180.77,30.0]
[1734878591106,13.8197,180.9,180.77,30.0]
[1734878591310,1.03418709,180.89,180.77,30.0]
[1734878591810,0.12549,180.88,180.77,30.0]
[1734878592013,0.12549,180.86,180.77,30.0]
[1734878592496,0.12549,180.86,180.7,3.807]
[1734878592697,0.12549,180.86,180.72,30.0]
[1734878592896,0.12549,180.86,180.7,3.807]
[1734878593324,0.12549,180.86,180.72,20.0]
[1734878593698,34.85688709,180.87,180.72,20.0]
[1734878593904,14.85688709,180.87,180.73,23.776884]
[1734878594112,1.03418709,180.87,180.76,20.0]
[1734878594311,1.03418709,180.9,180.67,14.66651121]
[1734878594611,0.12549,180.88,180.67,13.8371]
[1734878594806,1.15967709,180.88,180.67,13.8371]
[1734878595005,13.822,180.87,180.64,13.8396]
[1734878595230,1.03418709,180.86,180.64,42.34873948]
[1734878595432,0.12549,180.83,180.64,14.66943948]
[1734878595616,1.15967709,180.83,180.64,13.8396]
[1734878595930,1.15967709,180.83,180.65,30.0]
[1734878596313,1.15967709,180.83,180.68,20.0]
[1734878596520,14.98527709,180.83,180.68,20.0]
[1734878599417,14.98527709,180.83,180.69,30.0]
[1734878599944,21.03418709,180.83,180.7,23.776884]
[1734878600236,1.03418709,180.88,180.74,23.776884]
[1734878600834,1.03418709,180.88,180.77,30.0]
[1734878602906,13.94779,180.87,180.77,30.0]
[1734878603106,0.12549,180.83,180.77,30.0]
[1734878603318,0.12549,180.79,180.63,26.04552637]
[1734878603522,0.12549,180.79,180.65,30.0]
[1734878603523,1.15967709,180.79,180.65,30.0]
[1734878603841,6.2686,180.78,180.65,30.0]
[1734878604017,1.15967709,180.77,180.65,30.0]
[1734878604833,1.15967709,180.77,180.6,13.8425]
[1734878605014,0.12549,180.75,180.61,30.0]
[1734878605213,1.15967709,180.75,180.57,22.24302637]
[1734878605432,1.15967709,180.75,180.57,13.8448]
[1734878605933,1.15967709,180.75,180.58,30.0]
[1734878606144,0.12549,180.73,180.59,23.776884]
[1734878606439,1.15967709,180.73,180.59,23.776884]
[1734878606735,1.15967709,180.73,180.58,30.0]
[1734878606935,0.12549,180.7,180.58,30.0]
[1734878607238,0.12549,180.68,180.55,0.6642269]
[1734878607534,1.15967709,180.68,180.55,0.6642269]
[1734878608437,0.12549,180.66,180.55,0.6642269]
[1734878608771,1.15967709,180.66,180.55,0.6642269]